Cogmind - Beta 13 @@@ ROGUE MODE // 2024.04.20 @ 23:36:10 Player: YBOUZL Result: Destroyed by L-31 Rogue with Katana Performance ------------- Evolutions (2) 1000 Regions Visited (6) 1200 Robots Destroyed (22) 110 Value Destroyed (457) 457 Prototype IDs (1) 20 Alien Tech Used (0) 0 Bonus (114) 114 TOTAL SCORE: 2901 Bonus ------- Follower Combat Kills 114 Cogmind --------- Core Integrity 0/550 Matter 265/300 Energy 100/100 System Corruption 10% Temperature Cool (0) Movement Core (50) Location -8/Materials Parts ------- > --- POWER (1) -------- (None) > --- PROPULSION (3) --- (None) > --- UTILITY (4) ------ Visual Processing Unit Terrain Scanner Advanced Targeting Computer > --- WEAPON (3) ------- Backup Laser I Datajack > --- INVENTORY (5) ---- (None) Peak State ------------ > --- POWER ------------ Light Deuterium Engine > --- PROPULSION ------- VSS Leg VSS Leg VSS Leg > --- UTILITY ---------- Visual Processing Unit Makeshift Terrain Scanner Advanced Targeting Computer Advanced Targeting Computer > --- WEAPON ----------- EM Pulse Cannon Light Assault Rifle EMP Blaster > --- INVENTORY -------- Terrain Scanner Beam Cannon [Rating: 33] Favorites ----------- Power Light Ion Engine Engine Light Ion Engine Propulsion Wheel Leg VSS Leg Wheel Wheel Utility Core Shielding Device Makeshift Terrain Scanner Processor Visual Processing Unit Hackware Hacking Suite Protection Core Shielding Weapon Light Assault Rifle Energy Gun EM Shotgun Energy Cannon Beam Cannon Ballistic Gun Light Assault Rifle Launcher EMP Blaster Special Melee Weapon Datajack Build | -11 -10 -9 -9 -9 -8 -8 ------- Run | Yrd Mat Mat Min Exi Min Mat Slots Evolved 4 | . . 2 . . . 2 Power . | . . . . . . . Propulsion 1 | . . 1 . . . . Utility 2 | . . . . . . 2 Weapon 1 | . . 1 . . . . Parts Attached 46 | 5 6 3 9 . 2 21 Power 8 | 1 1 1 1 . 1 3 Engine 8 | 1 1 1 1 . 1 3 Core . | . . . . . . . Reactor . | . . . . . . . Propulsion 11 | 2 . . 2 . 1 6 Treads . | . . . . . . . Leg 3 | . . . . . . 3 Wheel 8 | 2 . . 2 . 1 3 Hover . | . . . . . . . Flight . | . . . . . . . Utility 13 | . 3 1 3 . . 6 Device 3 | . . . 1 . . 2 Storage . | . . . . . . . Processor 3 | . . . 1 . . 2 Hackware 1 | . . . . . . 1 Protection 6 | . 3 1 1 . . 1 Artifact . | . . . . . . . Weapon 14 | 2 2 1 3 . . 6 Energy Gun 3 | 1 . . 1 . . 1 Energy Cannon 3 | . . . 1 . . 2 Ballistic Gun 4 | 1 1 . 1 . . 1 Ballistic Cannon . | . . . . . . . Launcher 3 | . 1 1 . . . 1 Special Weapon . | . . . . . . . Impact Weapon . | . . . . . . . Slashing Weapon . | . . . . . . . Piercing Weapon . | . . . . . . . Special Melee Weapon 1 | . . . . . . 1 Unidentified Prototypes 1 | . . . . . . 1 Corrupted Parts 3 | . . . . . . 3 System Corruption 9 | . . . . . . 9 Parts Lost 17 | . 1 1 2 . 2 11 Power 2 | . . . . . . 2 Propulsion 6 | . . 1 1 . 1 3 Utility 3 | . . . 1 . . 2 Weapon 6 | . 1 . . . 1 4 Highest Loss Streak 7 | . 1 1 2 . 2 7 To Critical Strikes 1 | . . 1 . . . . Average Slot Usage (%) 82 | . 96 83 85 88 84 71 Engine 10 | . 14 11 11 11 11 6 Wheel 20 | . 28 21 21 22 21 13 Device 1 | . . . . . . 8 Processor 9 | . . . 9 11 11 20 Protection 12 | . 24 22 11 11 11 2 Energy Gun 8 | . 14 11 11 11 7 . Energy Cannon 5 | . . . 6 11 11 6 Ballistic Gun 10 | . 8 11 14 11 11 5 Launcher 2 | . 5 6 . . . 5 Naked Turns . | . . . . . . . Heaviest Build 35 | 7 14 17 15 11 11 35 Greatest Support 38 | 26 26 26 38 22 22 36 Greatest Overweight (x) 1 | . . . . . . 1 Average Overweight (x) . | . . . . . . . Largest Inventory Capacity 5 | 5 5 5 5 5 5 5 Average Capacity 5 | 5 5 5 5 5 5 5 Most Carried 5 | 3 3 4 5 3 5 5 Average Carried 2 | . . 1 2 2 3 1 Final Capacity 5 | 5 5 5 5 5 5 5 Final Carried 5 | . . 4 3 3 5 . Class Distribution -------------------- 59% | Tank 31% | Mutant 5% | Skirmisher 3% | Gunner Dominant Class ---------------- Mutant | -10/Materials Tank | -9/Materials Tank | -9/Mines Tank | -9/Exiles Tank | -8/Mines Mutant | -8/Materials Resources | -11 -10 -9 -9 -9 -8 -8 ----------- Run | Yrd Mat Mat Min Exi Min Mat Matter Collected 708 | 199 96 . 145 . 103 165 Remotely . | . . . . . . . Salvage Created 671 | . 35 121 85 . 69 361 Parts 52 | . 3 11 11 . 7 20 Haulers Intercepted . | . . . . . . . Recyclers Shooed 2 | . . . . . . 2 Parts Field Recycled . | . . . . . . . Retrieved Matter . | . . . . . . . Parts Self-Destructed . | . . . . . . . Prevented . | . . . . . . . Kills | -11 -10 -9 -9 -9 -8 -8 ------- Run | Yrd Mat Mat Min Exi Min Mat Combat Hostiles Destroyed 12 | . 1 2 4 . 3 2 Guns 8 | . 1 . 4 . 3 . Cannons 1 | . . . . . . 1 AOE 3 | . . 2 . . . 1 Classes Destroyed 8 | . 1 2 2 . . 3 Worker 3 | . . . 1 . 1 1 Builder 1 | . . . . . . 1 Recycler 1 | . . . . . . 1 Operator 1 | . . 1 . . . . Watcher 4 | . . 1 . . . 3 Swarmer 7 | . . . 4 . 3 . Grunt 3 | . 1 2 . . . . Specialist 2 | . . . . . . 2 Best Kill Streak 5 | . 1 2 5 . 4 5 Combat Bots Only 4 | . 1 2 4 . 3 2 Max Kills in Single Turn 2 | . 1 1 2 . 2 2 Gunslinging . | . . . . . . . Exploded 1 | . . 1 . . . 1 Melee . | . . . . . . . Uniques/NPCs Destroyed . | . . . . . . . Combat | -11 -10 -9 -9 -9 -8 -8 -------- Run | Yrd Mat Mat Min Exi Min Mat Hostile Shots Fired 202 | . 3 63 27 . 15 94 Missed 58 | . 1 23 9 . 3 22 Damage Taken 2019 | . 153 408 207 . 97 1154 Core 652 | . . 30 33 . 13 576 Absorbed by Shields . | . . . . . . . Redirected to Shielding 15 | . . 7 6 . 2 . Regen/Repaired (Parts) 50 | . . 50 . . . . Core Remaining (%) 93 | 100 100 . . . 81 . Volleys Fired 51 | . 4 12 15 . 6 14 Largest 3 | . 2 3 3 . 3 3 Hottest 156 | . 70 103 125 . 125 156 Shots Fired 120 | . 7 29 42 . 15 27 Gun 79 | . 6 21 34 . 9 9 Cannon 24 | . . . 8 . 6 10 Launcher 17 | . 1 8 . . . 8 Special . | . . . . . . . Kinetic 43 | . 3 12 16 . 6 6 Thermal 38 | . 3 9 14 . 6 6 Explosive 1 | . 1 . . . . . Electromagnetic 38 | . . 8 12 . 3 15 Robot Hit Streak 6 | . 5 3 4 . 6 6 Robot Miss Streak 7 | . 1 5 7 . 3 3 Penetration Max 1 | . . . . . . 1 Secondary Targets . | . . . . . . . Shots Hit Robots 61 | . 5 11 22 . 7 16 Core Hits 36 | . 3 5 8 . 5 15 Critical Kills . | . . . . . . . Critical Parts Destroyed . | . . . . . . . Critical Strikes 1 | . . 1 . . . . Burn 1 | . . 1 . . . . Melee Attacks . | . . . . . . . Impact . | . . . . . . . Slashing . | . . . . . . . Piercing . | . . . . . . . Sneak Attacks . | . . . . . . . Combat Hostiles . | . . . . . . . Follow-up Attacks . | . . . . . . . Damage Inflicted 1514 | . 71 382 265 . 100 696 Guns 529 | . 71 114 195 . 48 101 Cannons 265 | . . . 70 . 52 143 Explosions 713 | . . 268 . . . 445 Melee . | . . . . . . . Ramming 7 | . . . . . . 7 Kinetic 273 | . 34 63 77 . 25 74 Thermal 417 | . 37 51 96 . 52 181 Explosive . | . . . . . . . Electromagnetic 817 | . . 268 92 . 23 434 Impact . | . . . . . . . Slashing . | . . . . . . . Piercing . | . . . . . . . Highest Corruption 10 | . . . . . . 10 Average Corruption 5 | . . . . . . 5 Corruption Purged . | . . . . . . . Corruption Blocked . | . . . . . . . Effects 10 | . . . . . . 10 Message Errors 2 | . . . . . . 2 Matter Fused 1 | . . . . . . 1 Energy Discharges 2 | . . . . . . 2 Parts Rejected 1 | . . . . . . 1 Data Loss (minor) 2 | . . . . . . 2 Data Loss (major) 1 | . . . . . . 1 Misdirections 1 | . . . . . . 1 Overload Shots . | . . . . . . . Overflow Damage 84 | . 55 17 . . . 12 Projectiles . | . . . . . . . Explosions 84 | . 55 17 . . . 12 Melee . | . . . . . . . Knockbacks . | . . . . . . . Impact . | . . . . . . . Kinetic . | . . . . . . . Secondary . | . . . . . . . Self-Inflicted Damage 219 | . 131 20 . . . 68 Shots 9 | . 2 2 . . . 5 Rammed 2 | . . . . . . 2 Targets Rammed 2 | . . . . . . 2 Kicked . | . . . . . . . Crushed . | . . . . . . . Highest Temperature 418 | . 66 256 418 . 117 142 Average Temperature 92 | . 33 100 145 . 44 43 Received Heat Transfer 732 | . 12 81 108 . . 531 Effects 6 | . . 4 2 . . . Energy Bleed 1 | . . . 1 . . . Interference 4 | . . 4 . . . . Short Circuit 1 | . . . 1 . . . Siege Activations . | . . . . . . . Robots Corrupted . | . . . . . . . Combat Hostiles . | . . . . . . . Parts Fried 1 | . . . . . . 1 Impact Corruptions . | . . . . . . . Robots Melted . | . . . . . . . Combat Hostiles . | . . . . . . . Parts Melted . | . . . . . . . Heat Transferred 1014 | . 111 222 222 . 111 348 Parts Sabotaged . | . . . . . . . Parts Stolen . | . . . . . . . Parts Stripped . | . . . . . . . Power Chain Reactions 4 | . . 1 . . . 3 Alert | -11 -10 -9 -9 -9 -8 -8 ------- Run | Yrd Mat Mat Min Exi Min Mat Peak Influence 232 | . 51 160 228 . 55 232 Initial 58 | . . 21 58 . . 21 Average 93 | . 21 112 180 . 17 80 Maximum Alert Level 1 | . . . 1 . . 1 Low Security (%) 88 | 100 100 100 54 . 100 98 Level 1 11 | . . . 45 . . 1 Level 2 . | . . . . . . . Level 3 . | . . . . . . . Level 4 . | . . . . . . . Level 5 . | . . . . . . . High Security . | . . . . . . . Max Security . | . . . . . . . Squads Dispatched 5 | . . . 1 . . 4 Investigation 1 | . . . . . . 1 Extermination . | . . . . . . . Reinforcement 3 | . . . . . . 3 Assault 1 | . . . 1 . . . Garrison . | . . . . . . . Intercept . | . . . . . . . Searches Triggered . | . . . . . . . Construction Impeded 1 | . . . . . . 1 Haulers Reinforced . | . . . . . . . Active Scanning Responses . | . . . . . . . Cargo Convoy Interrupts . | . . . . . . . Stealth | -11 -10 -9 -9 -9 -8 -8 --------- Run | Yrd Mat Mat Min Exi Min Mat Distress Signals 1 | . . . . . . 1 Communications Jammed . | . . . . . . . Distress Signals . | . . . . . . . Times Spotted 49 | . 1 10 10 . 4 24 Peak Tracking Total 13 | . 1 4 4 . 4 13 Tactical Retreats 6 | . . 2 . . . 4 Traps | -11 -10 -9 -9 -9 -8 -8 ------- Run | Yrd Mat Mat Min Exi Min Mat Traps Triggered 1 | . . . . . . 1 Indirectly 1 | . . . . . . 1 Trap Hack Attempts . | . . . . . . . Triggered . | . . . . . . . Disarmed . | . . . . . . . Reprogrammed . | . . . . . . . Reused . | . . . . . . . Traps Extracted . | . . . . . . . Installed . | . . . . . . . Triggered . | . . . . . . . Most Traps Carried 3 | . . . 3 1 . . Machines | -11 -10 -9 -9 -9 -8 -8 ---------- Run | Yrd Mat Mat Min Exi Min Mat Machines Disabled 4 | . 1 2 . . . 1 Max in Single Turn 2 | . 1 2 . . . 1 Machines Repaired . | . . . . . . . Machines Dismantled . | . . . . . . . Machines Sabotaged . | . . . . . . . Overloaded Fab Kills . | . . . . . . . Hacking | -11 -10 -9 -9 -9 -8 -8 --------- Run | Yrd Mat Mat Min Exi Min Mat Machines Accessed 8 | . 1 3 . . . 4 Terminals 6 | . 1 2 . . . 3 Fabricators . | . . . . . . . Repair Stations 1 | . . 1 . . . . Recycling Units 1 | . . . . . . 1 Scanalyzers . | . . . . . . . Garrison Access . | . . . . . . . Total Hacks 26 | . 2 10 . . . 14 Successful 16 | . 1 5 . . . 10 Failed 10 | . 1 5 . . . 4 Catastrophic . | . . . . . . . Database Lockouts . | . . . . . . . Manual . | . . . . . . . Terminals 23 | . 2 8 . . . 13 Fabricators . | . . . . . . . Repair Stations 2 | . . 2 . . . . Recycling Units 1 | . . . . . . 1 Scanalyzers . | . . . . . . . Garrison Access . | . . . . . . . Terminal Hacks 13 | . 1 3 . . . 9 Record 4 | . . . . . . 4 Level Access Points 1 | . 1 . . . . . Alert Level 4 | . . 2 . . . 2 Unreport Threat 1 | . . . . . . 1 Maintenance Status 1 | . . . . . . 1 Reinforcement Status 1 | . . 1 . . . . Recall Investigation 1 | . . . . . . 1 Fabricator Hacks . | . . . . . . . Repair Station Hacks 2 | . . 2 . . . . Scan Component 1 | . . 1 . . . . Repair 1 | . . 1 . . . . Recycling Unit Hacks 1 | . . . . . . 1 Retrieve Components 1 | . . . . . . 1 Scanalyzer . | . . . . . . . Garrison Access Hacks . | . . . . . . . Unauthorized Hacks . | . . . . . . . Terminals . | . . . . . . . Fabricators . | . . . . . . . Repair Stations . | . . . . . . . Recycling Units . | . . . . . . . Scanalyzers . | . . . . . . . Garrison Access . | . . . . . . . Data Cores Recovered 1 | . . 1 . . . . Used . | . . . . . . . Hacking Detections 6 | . 1 2 . . . 3 Full Trace Events 2 | . . . . . . 2 Feedback Events . | . . . . . . . Feedback Blocked . | . . . . . . . Robot Schematics Acquired . | . . . . . . . Robots Built . | . . . . . . . Authchips . | . . . . . . . Time . | . . . . . . . Total Robot Build Rating . | . . . . . . . Part Schematics Acquired . | . . . . . . . Parts Built . | . . . . . . . Authchips . | . . . . . . . Time . | . . . . . . . Total Part Build Rating . | . . . . . . . Parts Repaired 1 | . . 1 . . . . Time 32 | . . 32 . . . . Parts Recycled . | . . . . . . . Recycled Matter . | . . . . . . . Retrieved Matter . | . . . . . . . Retrieved Components 1 | . . . . . . 1 Parts Scanalyzed . | . . . . . . . Part Schematics Acquired . | . . . . . . . Parts Damaged . | . . . . . . . Bothacking | -11 -10 -9 -9 -9 -8 -8 ------------ Run | Yrd Mat Mat Min Exi Min Mat Used RIF Installer . | . . . . . . . Robots Hacked . | . . . . . . . Non-combat . | . . . . . . . Combat . | . . . . . . . Robot Hacks Applied . | . . . . . . . Relay Couplers Released . | . . . . . . . Fabnet Peak Effective % . | . . . . . . . Robots Rewired . | . . . . . . . Allies Hacked . | . . . . . . . Hacks Repelled . | . . . . . . . Allies | -11 -10 -9 -9 -9 -8 -8 -------- Run | Yrd Mat Mat Min Exi Min Mat Total Allies 3 | . . . 3 . . . Largest Group 3 | . . . 3 3 . . Highest-Rated Group 71 | . . . 71 71 . . Highest-Rated Ally 31 | . . . 31 31 . . Total Orders . | . . . . . . . Ally Attacks 14 | . . . 14 . . . Total Damage 209 | . . . 209 . . . Kills 4 | . . . 4 . . . Allies Corrupted . | . . . . . . . Allies Melted . | . . . . . . . Intel | -11 -10 -9 -9 -9 -8 -8 ------- Run | Yrd Mat Mat Min Exi Min Mat Robot Analysis Total . | . . . . . . . Derelict Logs Recovered 1 | . . . 1 . . . Drone Launches . | . . . . . . . Drone Recoveries . | . . . . . . . Exploration | -11 -10 -9 -9 -9 -8 -8 ------------- Run | Yrd Mat Mat Min Exi Min Mat Turns Passed 1617 | 47 73 372 360 131 335 299 Spaces Moved 1560 | 42 55 357 332 153 367 254 Core 38 | 5 . . . . . 33 Treads . | . . . . . . . Legs 26 | . . . . . . 26 Wheels 1496 | 37 55 357 332 153 367 195 Hover . | . . . . . . . Flight . | . . . . . . . Fastest Speed 50 | 50 90 90 85 85 85 50 Average Speed 87 | 85 90 90 87 85 85 86 Slowest Speed 100 | 100 90 100 100 85 90 100 Overloaded Moves . | . . . . . . . Propulsion Burnouts . | . . . . . . . Robots Hopped . | . . . . . . . Cave-ins Triggered . | . . . . . . . Exploration Rate (%) 40 | 3 17 36 80 58 66 25 Regions Visited 6 Branch Regions 3 Pre-discovered Areas 1 | . . . 1 . . . Known Exits Taken 1 | . 1 . . . . . Unknown Exits Taken 5 | 1 . 1 1 1 1 . Scrap Searched 3 | . . . 2 . 1 . Spaces Dug 5 | . 5 . . . . . Terrain Destroyed 34 | . 20 3 . . . 11 Melee . | . . . . . . . Projectile . | . . . . . . . AOE 34 | . 20 3 . . . 11 Terrain Rammed . | . . . . . . . Walls Destroyed . | . . . . . . . Machines Disabled . | . . . . . . . Actions | -11 -10 -9 -9 -9 -8 -8 --------- Run | Yrd Mat Mat Min Exi Min Mat Total 1728 | 53 71 384 370 154 379 317 Wait . | . . . . . . . Move 1554 | 41 54 356 331 152 366 254 Hop . | . . . . . . . Pick Up 49 | 6 5 9 9 1 3 16 Fast Attach . | . . . . . . . Attach 38 | 5 4 2 5 . 2 20 Detach 1 | . . . . . 1 . Swap 8 | . 2 1 4 . . 1 Drop 25 | 1 2 4 6 1 1 10 Fire 51 | . 4 12 15 . 6 14 Melee . | . . . . . . . Ram 2 | . . . . . . 2 Kick . | . . . . . . . Crush . | . . . . . . . Escape Stasis . | . . . . . . . Rewire . | . . . . . . . Trap . | . . . . . . . Miscellaneous . | . . . . . . . Route ------- -11/Scrapyard -10/Materials (discovered 3 exits: *Mat x3) -9/Materials -9/Mines -9/Exiles -8/Mines -8/Materials History --------- Turn | Location | Event 16 | -11/Scrapyard | Discovered new exit (range 15) 48 | -11/Scrapyard | Entered Materials 67 | -10/Materials | Identified exit to Materials 121 | -10/Materials | Entered another Materials area 121 | -9/Materials | Evolved 2 slots: Propulsion x1, Weapon x1 325 | -9/Materials | Discovered new exit (range 8) 454 | -9/Materials | Repaired EMP Blaster 493 | -9/Materials | Entered Mines 525 | -9/Mines | Met a Derelict bent on vengeance 550 | -9/Mines | Learned location of Storage (-9) 599 | -9/Mines | Met a Derelict testing a Signal Generator 711 | -9/Mines | Found a hidden stash of uninstalled traps 791 | -9/Mines | Build established: Tank 837 | -9/Mines | Deemed a non-threat by the Exiles lab entrance 837 | -9/Mines | Discovered new exit (range 5) 853 | -9/Mines | Entered Exiles 853 | -9/Exiles | Found Exiles lab destroyed 853 | -9/Exiles | Accompanied by 3 allies 883 | -9/Exiles | Led the pair of lost Derelicts to a safe place 975 | -9/Exiles | Discovered new exit (range 10) 984 | -9/Exiles | Entered Mines 1313 | -8/Mines | Discovered new exit (range 9) 1319 | -8/Mines | Entered Materials 1319 | -8/Materials | Evolved 2 slots: Utility x2 1543 | -8/Materials | Lost 4 parts (1p3w) 1579 | -8/Materials | System corruption reached 10% 1583 | -8/Materials | Core integrity fell below 50% 1613 | -8/Materials | Core integrity fell below 20% 1618 | -8/Materials | Destroyed by L-31 Rogue with Katana Last Messages --------------- [Achievement: Please Form A Line] U-05 Engineer lays Concrete. Critical hit (Burn: +37). Wheel destroyed. G-47 Trooper misfires. Terminal disabled. Slammed into M-13 Machinist. Acquired 46 matter. M-13 Machinist repairs G-47 Trooper. Gauss Rifle destroyed. System corrupted: Matter fused (-5). Slug penetrates Neutrino Reactor. Hacking Suite destroyed. Acquired Backup Laser I. Acquired Lgt. Ion Engine. Acquired Datajack. Slug penetrates Wall. K-01 Serf collects debris. Slug penetrates Wall. Lgt. Ion Engine destroyed. Map ----- +----------------------------------------------------+ | ?????????????????????????????????????????????????? | | ?????????????????????????????????????????????????? | | ?????????????????????????????????????????????????? | | ?????????????????????????????????????????????????? | | ?????????????????????????????????????????????????? | | ?????????????????????????????????????????????????? | | ?????????????????????????????????????????????????? | | ?????????????????????????? ??????????????????????? | | ?????????????????????????? ? ??????????????????? | | ?????????????????????????? #?????????????????? | | ??????????????? ???????? #?????????????????? | | ?????????????## ######## #?????????????????? | | ?????????????? #?????????????????? | | ?????????????? #?????????????????? | | ?????????????? ] #?????????????????? | | ??????????????? #?????????????????? | | ??????????????? #?????????????????? | | ????????????"" """ """ """ ##########????????? | | ????????????"" """ """ """ ???????? | | ????????? """ """ """ """ ???????? | | ???????? ??????? | | ???????? ??????? | | ???????? ??????? | | ???????????????#######g##### #######??#??????????? | | ????????????#?????# g ggg # #??? ???????????????? | | ??????????????????# """ l@ # #???????????????????? | | ??????????????????# "R # # ????""????????????? | | ??????????????????# "" *# #????"""????????????? | | ??????????????????# * *!# #??? ??????H??????? | | ???????????????#??# """ ^!# #?? ""?????????????? | | ??????? ??????????# """ # #? ""?????????????? | | ?????? ?????#??#??# """ k # # "??????????????? | | ??????????????????# !# # ????????????????? | | ??????????????????######## # ##?????#????????????? | | ?????? ??"????#?############%########??#??? #????? | | ?????????? ??#?#?# #???#????????? | | ?????#???????????# ! #????????????? | | ???? ??#?#??#????# % #????? ??????? | | ??????????? ???#?# ######## #?#??????????? | | ??????? ??? ? ???# #?#??### #??#?????????? | | ????????????????## ##?#?### ###??????????? | | ???????????????### ##?????# " == "#??? ??????? | | ?????????###?#####+######## T T"#??????????? | | ?????????# #?# ! + " = ""#??????????? | | ?????????# #?# !#* ! ###??? ??????? | | ?????????# ### %+ #????????????? | | ?????????# + ! ! *##########" "# #?????? ????? | | ? ??????######! = !##?????####### #????????????? | | ?????????????####/########## ###### #??#??#??????? | | ???????#????????# / ## #????????????? | +----------------------------------------------------+ Best States ------------- Heat Dissipation 31 Energy Generation 14 Energy Capacity 280 Matter Stores 300 Matter Capacity 300 Sight Range 18 Terrain Scan Range 18 Terrain Scan Density 10 Armor Coverage 600 Core Shielding 20 Evasion (%) 52 Targeting Accuracy 16 Offensive Hacking 10 Item Schematics ----------------- None Robot Schematics ------------------ None Fabricated ------------ Nothing Alien Tech Used ----------------- None Achievements -------------- Everything Is Under Control GoHome() Please Form A Line System Compromised Challenges ------------ None Game ------ Seed CargoScanRifle Manual? 0 Play Time 00:27:24 Cumulative 2.5 hours Start 2024.04.20 @ 23:08:43 End 2024.04.20 @ 23:36:10 Sessions 1 Manual Loads 0 Difficulty Rogue Special Mode None Game No. 7 Rogue 7 Adventurer 0 Explorer 0 Win Type - Total 0 Types 0/0/0/0/0/0/0/0/0 Lore% 10 Gallery% 7 Achievement% 7 Wizard Run 0 Options --------- Layout 1 ASCII 0 Keyboard 0 Movement Mouse Keybinds 0 Fullscreen 1 Font 24/Smallcaps Map View 50x35 Zoom Use 0% Tactical HUD 0 Map Filters NONE Filters NONE Steam 1 RUN: 956878c5-ebe5-4269-a049-ba9540703219